Cogmind - Beta 13 @@@ ROGUE MODE // 2024.04.17 @ 23:47:45 Player: Cwaftwer Result: Destroyed by D-53 Grenadier with Mini Grenade Launcher Performance ------------- Evolutions (0) 0 Regions Visited (2) 400 Robots Destroyed (9) 45 Value Destroyed (100) 100 Prototype IDs (4) 80 Alien Tech Used (0) 0 Bonus (0) 0 TOTAL SCORE: 625 Bonus ------- None Cogmind --------- Core Integrity 0/250 Matter 270/300 Energy 88/100 System Corruption 0% Temperature Cool (0) Movement Rolling (80) Location -10/Mines Parts ------- > --- POWER (1) -------- (None) > --- PROPULSION (2) --- Wheel > --- UTILITY (2) ------ Small Storage Unit Seismic Detector > --- WEAPON (2) ------- Scythe > --- INVENTORY (8) ---- Ion Engine Flight Unit Medium Battery (150) Large Matter Pod (124) Hacking Suite Assault Rifle Missile Launcher Peak State ------------ > --- POWER ------------ (None) > --- PROPULSION ------- Flight Unit Cesium-ion Thruster > --- UTILITY ---------- Small Storage Unit Seismic Detector > --- WEAPON ----------- Scythe > --- INVENTORY -------- Ion Engine Wheel Flight Unit Medium Battery Large Matter Pod Hacking Suite Assault Rifle Missile Launcher [Rating: 10] Favorites ----------- Power Ion Engine Engine Ion Engine Propulsion Aluminum Leg Leg Aluminum Leg Wheel Wheel Flight Unit Flight Unit Utility Small Storage Unit Device Seismic Detector Storage Small Storage Unit Weapon Light Assault Rifle Ballistic Gun Light Assault Rifle Slashing Weapon Scythe Build | -11 -10 -10 ------- Run | Yrd Mat Min Slots Evolved . | . . . Power . | . . . Propulsion . | . . . Utility . | . . . Weapon . | . . . Parts Attached 20 | 7 9 4 Power 1 | 1 . . Engine 1 | 1 . . Core . | . . . Reactor . | . . . Propulsion 7 | 2 2 3 Treads . | . . . Leg 2 | 2 . . Wheel 1 | . . 1 Hover . | . . . Flight 4 | . 2 2 Utility 5 | 2 3 . Device 2 | 1 1 . Storage 3 | 1 2 . Processor . | . . . Hackware . | . . . Protection . | . . . Artifact . | . . . Weapon 7 | 2 4 1 Energy Gun . | . . . Energy Cannon . | . . . Ballistic Gun 6 | 2 4 . Ballistic Cannon . | . . . Launcher . | . . . Special Weapon . | . . . Impact Weapon . | . . . Slashing Weapon 1 | . . 1 Piercing Weapon . | . . . Special Melee Weapon . | . . . Unidentified Prototypes . | . . . Parts Lost 2 | . . 2 Power . | . . . Propulsion 2 | . . 2 Utility . | . . . Weapon . | . . . Highest Loss Streak 2 | . . 2 To Critical Strikes . | . . . Average Slot Usage (%) 81 | . 87 69 Engine 6 | . 9 . Leg 12 | . 18 . Flight 15 | . 9 26 Device 13 | . 13 14 Storage 14 | . 14 14 Ballistic Gun 16 | . 21 5 Slashing Weapon 2 | . . 8 Naked Turns . | . . . Heaviest Build 15 | 13 15 8 Greatest Support 20 | 20 20 10 Greatest Overweight (x) 3 | 3 . 1 Average Overweight (x) . | . . . Largest Inventory Capacity 25 | 8 25 8 Average Capacity 8 | 7 8 8 Most Carried 8 | 6 8 8 Average Carried 5 | 2 4 7 Final Capacity 8 | 8 8 8 Final Carried 8 | 3 8 7 Class Distribution -------------------- 100% | Mutant Dominant Class ---------------- Mutant | -10/Materials Mutant | -10/Mines Resources | -11 -10 -10 ----------- Run | Yrd Mat Min Matter Collected 491 | 124 107 260 Remotely . | . . . Salvage Created 140 | 34 106 . Parts 13 | 7 6 . Haulers Intercepted . | . . . Recyclers Shooed . | . . . Parts Field Recycled . | . . . Retrieved Matter . | . . . Parts Self-Destructed . | . . . Prevented . | . . . Kills | -11 -10 -10 ------- Run | Yrd Mat Min Combat Hostiles Destroyed 6 | . 6 . Guns 6 | . 6 . Classes Destroyed 3 | 1 2 . Tunneler 2 | 2 . . Operator 1 | . 1 . Swarmer 6 | . 6 . Best Kill Streak 3 | 1 3 . Combat Bots Only 3 | . 3 . Max Kills in Single Turn 1 | 1 1 . Gunslinging . | . . . Exploded . | . . . Melee . | . . . Uniques/NPCs Destroyed . | . . . Combat | -11 -10 -10 -------- Run | Yrd Mat Min Hostile Shots Fired 64 | . 55 9 Missed 16 | . 16 . Damage Taken 647 | . 340 307 Core 258 | . 63 195 Absorbed by Shields . | . . . Regen/Repaired (Parts) 2 | . 2 . Core Remaining (%) 100 | 100 . . Volleys Fired 39 | 10 29 . Largest 2 | 2 2 . Hottest 40 | 40 40 . Shots Fired 70 | 20 50 . Gun 70 | 20 50 . Cannon . | . . . Launcher . | . . . Special . | . . . Kinetic 70 | 20 50 . Thermal . | . . . Explosive . | . . . Electromagnetic . | . . . Robot Hit Streak 3 | 3 3 . Robot Miss Streak 5 | 5 4 . Penetration Max . | . . . Secondary Targets . | . . . Shots Hit Robots 36 | 10 25 1 Core Hits 15 | 4 11 . Critical Kills . | . . . Critical Parts Destroyed . | . . . Critical Strikes . | . . . Melee Attacks 1 | . . 1 Impact . | . . . Slashing 1 | . . 1 Piercing . | . . . Sneak Attacks . | . . . Combat Hostiles . | . . . Follow-up Attacks . | . . . Damage Inflicted 349 | 72 244 33 Guns 316 | 72 244 . Cannons . | . . . Explosions . | . . . Melee 33 | . . 33 Ramming . | . . . Kinetic 316 | 72 244 . Thermal . | . . . Explosive . | . . . Electromagnetic . | . . . Impact . | . . . Slashing 33 | . . 33 Piercing . | . . . Highest Corruption . | . . . Average Corruption . | . . . Corruption Purged . | . . . Corruption Blocked . | . . . Overload Shots . | . . . Overflow Damage . | . . . Projectiles . | . . . Explosions . | . . . Melee . | . . . Knockbacks . | . . . Impact . | . . . Kinetic . | . . . Secondary . | . . . Self-Inflicted Damage . | . . . Shots . | . . . Rammed . | . . . Targets Rammed . | . . . Kicked . | . . . Crushed . | . . . Highest Temperature . | . . . Average Temperature . | . . . Received Heat Transfer . | . . . Siege Activations . | . . . Robots Corrupted . | . . . Combat Hostiles . | . . . Parts Fried . | . . . Impact Corruptions . | . . . Robots Melted . | . . . Combat Hostiles . | . . . Parts Melted . | . . . Heat Transferred . | . . . Parts Sabotaged . | . . . Parts Stolen . | . . . Parts Stripped . | . . . Power Chain Reactions . | . . . Alert | -11 -10 -10 ------- Run | Yrd Mat Min Peak Influence 192 | 10 192 55 Initial 55 | . 6 55 Average 53 | 3 69 53 Maximum Alert Level . | . . . Low Security (%) 100 | 100 100 100 Level 1 . | . . . Level 2 . | . . . Level 3 . | . . . Level 4 . | . . . Level 5 . | . . . High Security . | . . . Max Security . | . . . Squads Dispatched 4 | . 4 . Investigation 2 | . 2 . Extermination . | . . . Reinforcement 2 | . 2 . Assault . | . . . Garrison . | . . . Intercept . | . . . Searches Triggered . | . . . Construction Impeded . | . . . Haulers Reinforced . | . . . Active Scanning Responses . | . . . Cargo Convoy Interrupts . | . . . Stealth | -11 -10 -10 --------- Run | Yrd Mat Min Distress Signals 3 | . 3 . Communications Jammed . | . . . Distress Signals . | . . . Times Spotted 19 | . 15 4 Peak Tracking Total 4 | . 4 4 Tactical Retreats 2 | . 2 . Traps | -11 -10 -10 ------- Run | Yrd Mat Min Traps Triggered 1 | . 1 . Indirectly . | . . . Trap Hack Attempts . | . . . Triggered . | . . . Disarmed . | . . . Reprogrammed . | . . . Reused . | . . . Traps Extracted . | . . . Installed . | . . . Triggered . | . . . Machines | -11 -10 -10 ---------- Run | Yrd Mat Min Machines Disabled 1 | . 1 . Max in Single Turn 1 | . 1 . Machines Repaired . | . . . Machines Dismantled . | . . . Machines Sabotaged . | . . . Overloaded Fab Kills . | . . . Hacking | -11 -10 -10 --------- Run | Yrd Mat Min Machines Accessed 6 | . 5 1 Terminals 4 | . 4 . Fabricators . | . . . Repair Stations 1 | . 1 . Recycling Units . | . . . Scanalyzers . | . . . Garrison Access . | . . . Total Hacks 19 | . 18 1 Successful 11 | . 10 1 Failed 8 | . 8 . Catastrophic . | . . . Database Lockouts . | . . . Manual . | . . . Terminals 16 | . 16 . Fabricators . | . . . Repair Stations 2 | . 2 . Recycling Units . | . . . Scanalyzers . | . . . Garrison Access . | . . . Terminal Hacks 9 | . 8 1 Record 2 | . 2 . Robot Analysis 1 | . 1 . Prototype ID Bank 2 | . 2 . Open Door 1 | . . 1 Emergency Access Points 2 | . 2 . Unreport Threat 1 | . 1 . Fabricator Hacks . | . . . Repair Station Hacks 2 | . 2 . Scan Component 1 | . 1 . Repair 1 | . 1 . Recycling Unit Hacks . | . . . Scanalyzer . | . . . Garrison Access Hacks . | . . . Unauthorized Hacks . | . . . Terminals . | . . . Fabricators . | . . . Repair Stations . | . . . Recycling Units . | . . . Scanalyzers . | . . . Garrison Access . | . . . Data Cores Recovered . | . . . Used . | . . . Hacking Detections 5 | . 5 . Full Trace Events 4 | . 4 . Feedback Events . | . . . Feedback Blocked . | . . . Robot Schematics Acquired . | . . . Robots Built . | . . . Authchips . | . . . Time . | . . . Total Robot Build Rating . | . . . Part Schematics Acquired . | . . . Parts Built . | . . . Authchips . | . . . Time . | . . . Total Part Build Rating . | . . . Parts Repaired 1 | . 1 . Time 26 | . 26 . Parts Recycled . | . . . Recycled Matter . | . . . Retrieved Matter . | . . . Retrieved Components . | . . . Parts Scanalyzed . | . . . Part Schematics Acquired . | . . . Parts Damaged . | . . . Bothacking | -11 -10 -10 ------------ Run | Yrd Mat Min Used RIF Installer . | . . . Robots Hacked . | . . . Non-combat . | . . . Combat . | . . . Robot Hacks Applied . | . . . Relay Couplers Released . | . . . Fabnet Peak Effective % . | . . . Robots Rewired . | . . . Allies Hacked . | . . . Hacks Repelled . | . . . Allies | -11 -10 -10 -------- Run | Yrd Mat Min Total Allies . | . . . Largest Group . | . . . Highest-Rated Group . | . . . Highest-Rated Ally . | . . . Total Orders . | . . . Ally Attacks . | . . . Total Damage . | . . . Kills . | . . . Allies Corrupted . | . . . Allies Melted . | . . . Intel | -11 -10 -10 ------- Run | Yrd Mat Min Robot Analysis Total 1 | . 1 . Derelict Logs Recovered 1 | . . 1 Drone Launches . | . . . Drone Recoveries . | . . . Exploration | -11 -10 -10 ------------- Run | Yrd Mat Min Turns Passed 687 | 123 369 195 Spaces Moved 691 | 62 311 318 Core 19 | 19 . . Treads . | . . . Legs 165 | 43 122 . Wheels 5 | . . 5 Hover . | . . . Flight 502 | . 189 313 Fastest Speed 34 | 50 37 34 Average Speed 60 | 130 69 38 Slowest Speed 200 | 200 120 120 Overloaded Moves . | . . . Propulsion Burnouts . | . . . Robots Hopped . | . . . Cave-ins Triggered . | . . . Exploration Rate (%) 39 | 5 53 60 Regions Visited 2 Branch Regions 1 Pre-discovered Areas 1 | . . 1 Known Exits Taken . | . . . Unknown Exits Taken 2 | 1 1 . Scrap Searched 2 | . . 2 Spaces Dug . | . . . Terrain Destroyed . | . . . Melee . | . . . Projectile . | . . . AOE . | . . . Terrain Rammed . | . . . Walls Destroyed . | . . . Machines Disabled . | . . . Actions | -11 -10 -10 --------- Run | Yrd Mat Min Total 903 | 88 422 393 Wait 110 | . 54 56 Move 689 | 61 310 318 Hop . | . . . Pick Up 27 | 10 10 7 Fast Attach . | . . . Attach 15 | 7 6 2 Detach 4 | . 4 . Swap 5 | . 3 2 Drop 13 | . 6 7 Fire 39 | 10 29 . Melee 1 | . . 1 Ram . | . . . Kick . | . . . Crush . | . . . Escape Stasis . | . . . Rewire . | . . . Trap . | . . . Miscellaneous . | . . . Route ------- -11/Scrapyard -10/Materials -10/Mines (discovered 1 exit: [*Mat]) History --------- Turn | Location | Event 26 | -11/Scrapyard | Discovered new exit (range 15) 124 | -11/Scrapyard | Entered Materials 196 | -10/Materials | Repaired Seismic Detector 308 | -10/Materials | Build established: Mutant 488 | -10/Materials | Discovered new exit (range 11) 493 | -10/Materials | Entered Mines 515 | -10/Mines | Met a Derelict bent on vengeance 555 | -10/Mines | Learned Materials emergency access door positions 559 | -10/Mines | Met a Derelict who couldn't figure out how to use a Trap Extractor 613 | -10/Mines | Learned location of Storage (-9) 624 | -10/Mines | Discovered new exit (range 11) 628 | -10/Mines | Assembled infested the area 683 | -10/Mines | Core integrity fell below 50% 685 | -10/Mines | Core integrity fell below 20% 688 | -10/Mines | Destroyed by D-53 Grenadier with Mini Grenade Launcher Last Messages --------------- failed. Whatever you do stay away from that place, they've tightened security following our previous successful raids." World map updated: -9/Storage. 04-U6M(g): "We scattered so the Unaware couldn't effectively use their advantage in numbers, and I suggest you do the same." 04-U6M(g) slips back into the shadows. EXIT=FOUND ALERT: Infestation in the mines, dispatching Demolisher response squad. QP-N4W(h) exits level. K-01 Serf collects debris. The unstable cave ceiling collapses. Cesium-ion Thruster destroyed. R-06 Scavenger destroyed. The unstable cave ceiling collapses. Flight Unit destroyed. D-53 Grenadier destroyed. The unstable cave ceiling collapses. Map ----- +----------------------------------------------------+ | | | | | | | | | | | ?????????????????????????????????????????????????? | | ?????????????????????????????????????????????????? | | ?????????????????????????????????????????????????? | | ?????????????????????????????????????????????????? | | ?????????????????????????????????????????????????? | | ?????????????????????????????????????????????????? | | ?????????????????????????????????????????????????? | | ?????????????????????????????????????????????????? | | ??????????????????????####???????????????????????? | | ?????????????????????## #???????????????????????? | | ?????????????????????# #####???????????######### | | ?????????????????????# ##??????????# | | ?????????????????????# < ##????????## ####### | | ???????????????#?????# #???????## ##???# | | ??????????????? ?????## ######### ##### | | ???????????????# ????# | | ?????????????### ????# | | ????????????## ???# # ########### | | ???????????## ???# #????????#### | | ?????? ##### ??# #???????????## | | ?????? ### @ ##????????????# | | ?????# d #?????????????# | | ???????# % ##??????###????# | | ?????????# *% ###??????## ##???# | | ?????# % #????????# ##?## | | ?????# ####????????## ### | | ?????? k ######????????????## | | ??????## % #???????????????????## | | ???????# ?????????????????????## | | ???????## u# ???????????????????????###### | | ???????? ##?????????????????????????????##### | | ???????? ???????????????????????????????????# | | ???????? ???????############?????????????????? | | ????????? ? !%! #?????????????????? | | ????????? ?? ###### #?????????????????? | | ?????????????????????????????# ##????????????????? | | ????????????????????????????## ##???????????????? | | ??????????????????????????### ##??????????????# | | ??????????????????????#??## #??############# | | ??????????????????????# ## #??# | | ??????????????????????# #??# | | ??????????????????????#### #??# ######### | | ?????????????????????????## #??# #???###### | | ??????????????????????????# #### #???#"=### | | ??????????????????????????# #???#"![!# | +----------------------------------------------------+ Best States ------------- Heat Dissipation 25 Energy Generation 10 Energy Capacity 250 Matter Stores 300 Matter Capacity 300 Sight Range 16 Terrain Scan Density 10 Evasion (%) 63 Item Schematics ----------------- None Robot Schematics ------------------ None Fabricated ------------ Nothing Alien Tech Used ----------------- None Achievements -------------- None Challenges ------------ None Game ------ Seed TransportGatlingSheargun Manual? 0 Play Time 00:14:10 Cumulative 19.5 hours Start 2024.04.17 @ 23:28:30 End 2024.04.17 @ 23:47:45 Sessions 1 Manual Loads 0 Difficulty Rogue Special Mode None Game No. 27 Rogue 26 Adventurer 1 Explorer 0 Win Type - Total 0 Types 0/0/0/0/0/0/0/0/0 Lore% 17 Gallery% 26 Achievement% 21 Wizard Run 0 Options --------- Layout 1 ASCII 0 Keyboard 0 Movement Mouse Keybinds 0 Fullscreen 1 Font 24/Smallcaps Map View 50x40 Zoom Use 0% Tactical HUD 0 Map Filters NONE Filters NONE Steam 1 RUN: 9452aaf3-2b53-4227-bfc9-dbd1aadb9932